lending/lending_fUSD_20260124
["ID","MTS","AMOUNT","RATE_DAILY","PERIOD"]
[403181445,1769251843028,-500.0,0.00016109,2]
[403181446,1769251843037,-500.0,0.00016109,2]
[403181447,1769251843046,-250.0,0.00016109,2]
[403181448,1769251843055,-250.0,0.00016109,2]
[403181449,1769251843064,-500.0,0.00016109,2]
[403181450,1769251843073,-500.0,0.00016109,2]
[403181452,1769251843082,-250.0,0.00016109,2]
[403181453,1769251843092,-250.0,0.00016109,2]
[403181454,1769251843108,-500.0,0.00016109,2]
[403181455,1769251843122,-500.0,0.00016109,2]
[403181456,1769251843132,-250.0,0.00016109,2]
[403181457,1769251843142,-721.12765535,0.00016109,2]
[403181458,1769251843153,-250.0,0.00016109,2]
[403181459,1769251843163,-500.0,0.00016109,2]
[403181460,1769251843173,-250.0,0.00016109,2]
[403181461,1769251843182,-500.0,0.00016109,2]
[403181462,1769251843192,-250.0,0.00016109,2]
[403181463,1769251843204,-500.0,0.00016109,2]
[403181464,1769251843214,-250.0,0.00016109,2]
[403181465,1769251843225,-500.0,0.00016109,2]
[403181466,1769251843234,-250.0,0.00016109,2]
[403181468,1769251843245,-500.0,0.00016109,2]
[403181469,1769251843255,-250.0,0.00016109,2]
[403181470,1769251843265,-500.0,0.00016109,2]
[403181471,1769251843274,-500.0,0.00016109,2]
[403181472,1769251843284,-250.0,0.00016109,2]
[403181473,1769251843293,-250.0,0.00016109,2]
[403181474,1769251843302,-500.0,0.00016109,2]
[403181475,1769251843311,-500.0,0.00016109,2]
[403181476,1769251843321,-250.0,0.00016109,2]
[403181477,1769251843332,-250.0,0.00016109,2]
[403181478,1769251843346,-500.0,0.00016109,2]
[403181479,1769251843355,-250.0,0.00016109,2]
[403181480,1769251843365,-500.0,0.00016109,2]
[403181481,1769251843374,-500.0,0.00016109,2]
[403181482,1769251843384,-250.0,0.00016109,2]
[403181483,1769251843393,-854.2589148,0.00016109,2]
[403181484,1769251843402,-500.0,0.00016109,2]
[403181485,1769251843413,-500.0,0.00016109,2]
[403181486,1769251843423,-250.0,0.00016109,2]
[403181487,1769251843433,-500.0,0.00016109,2]
[403181488,1769251843442,-250.0,0.00016109,2]
[403181489,1769251843451,-500.0,0.00016109,2]
[403181490,1769251843461,-174.61919141,0.00016109,2]
[403181491,1769251843470,-500.0,0.00016109,2]
[403181492,1769251843479,-500.0,0.00016109,2]
[403181493,1769251843488,-500.0,0.00016109,2]
[403181494,1769251843498,-743.50770149,0.00016109,2]
[403181495,1769251843507,-500.0,0.00016109,2]
[403181496,1769251843517,-500.0,0.00016109,2]
[403181497,1769251843526,-500.0,0.00016109,2]
[403181498,1769251843536,-500.0,0.00016109,2]
[403181499,1769251843545,-500.0,0.00016109,2]
[403181500,1769251843556,-500.0,0.00016109,2]
[403181501,1769251843568,-578.20924308,0.00016109,2]
[403181502,1769251843578,-500.0,0.00016109,2]
[403181503,1769251843587,-500.0,0.00016109,2]
[403181504,1769251843596,-500.0,0.00016109,2]
[403181505,1769251843606,-500.0,0.00016109,2]
[403181506,1769251843615,-500.0,0.00016109,2]
[403181507,1769251843625,-250.0,0.00016109,2]
[403181508,1769251843634,-250.0,0.00016109,2]
[403181509,1769251843644,-263.33008425,0.00016109,2]
[403181510,1769251843654,-151.0,0.00016109,2]
[403181511,1769251843663,-151.0,0.00016109,2]
[403181512,1769251843672,-151.0,0.00016109,2]
[403181513,1769251843681,-151.0,0.00016109,2]
[403181514,1769251843690,-151.0,0.00016109,2]
[403181515,1769251843699,-151.0,0.00016109,2]
[403181516,1769251843708,-151.0,0.00016109,2]
[403181517,1769251843718,-151.0,0.00016109,2]
[403181518,1769251843728,-250.0,0.00016109,2]
[403181519,1769251843737,-250.0,0.00016109,2]
[403181520,1769251843747,-151.0,0.00016109,2]
[403181521,1769251843756,-250.0,0.00016109,2]
[403181522,1769251843766,-151.0,0.00016109,2]
[403181523,1769251843775,-250.0,0.00016109,2]
[403181524,1769251843784,-151.0,0.00016109,2]
[403181525,1769251843793,-250.0,0.00016109,2]
[403181526,1769251843801,-266.11006595,0.00016109,2]
[403181527,1769251843810,-37000.92,0.00016116,2]
[403181528,1769251843820,-9999.99,0.00016116,2]
[403181529,1769251843829,-182.74,0.00016116,2]
[403181530,1769251843838,-150.99,0.00016116,2]
[403181531,1769251843847,-500.0,0.00016186,2]
[403181532,1769251843856,-152.0,0.00016243,4]
[403181533,1769251843865,-195.30077557,0.00016323,2]
[403181534,1769251843875,-500.0,0.00016356,2]
[403181535,1769251843884,-500.0,0.00016356,2]
[403181536,1769251843894,-1001.80734067,0.00016421,2]
[403181537,1769251843903,-170.62003131,0.00016421,2]
[403181538,1769251843912,-292.86388149,0.00016421,2]
[403181539,1769251843921,-1068.24864212,0.00016421,2]
[403181540,1769251843931,-1097.63046091,0.00016421,2]
[403181541,1769251843940,-502.78879497,0.00016421,2]
[403181542,1769251843950,-1005.95943746,0.00016421,2]
[403181543,1769251843959,-1000.0,0.00016421,2]
[403181544,1769251843968,-1000.0,0.00016421,2]
[403181545,1769251843978,-502.47348302,0.00016421,2]
[403181546,1769251843989,-1000.0,0.00016421,2]
[403181547,1769251843999,-1000.0,0.00016421,2]
[403181548,1769251844008,-1000.0,0.00016421,2]
[403181549,1769251844017,-502.42566729,0.00016421,2]
[403181550,1769251844027,-1000.0,0.00016421,2]
[403181551,1769251844039,-1000.0,0.00016421,2]
[403181552,1769251844049,-1000.0,0.00016421,2]
[403181553,1769251844060,-1408.0,0.00016434,2]
[403181554,1769251844070,-3476.0,0.00016434,2]
[403181555,1769251844080,-615.0,0.00016434,2]
[403181556,1769251844091,-1333.0,0.00016434,2]
[403181557,1769251844102,-1269.0,0.00016434,2]
[403181558,1769251844114,-184.0,0.00016434,2]
[403181559,1769251844124,-6568.0,0.00016434,2]
[403181560,1769251844135,-567.0,0.00016434,2]
[403181561,1769251844146,-4830.0,0.00016434,2]
[403181562,1769251844157,-500.0,0.00016438,2]
[403181563,1769251844168,-500.0,0.00016438,2]
[403181564,1769251844179,-500.0,0.00016438,2]
[403181565,1769251844189,-500.0,0.00016438,2]
[403181566,1769251844199,-500.0,0.00016438,2]
[403181567,1769251844209,-237.2611018,0.00016438,2]
[403181568,1769251844218,-500.0,0.00016438,2]
[403181569,1769251844227,-500.0,0.00016438,2]
[403181570,1769251844245,-500.0,0.00016438,2]
[403181571,1769251844261,-500.0,0.00016438,2]
[403181572,1769251844278,-3012.0,0.00016438,2]
[403181573,1769251844294,-165.86,0.00016438,2]
[403181574,1769251844308,-151.0,0.00016438,2]
[403181575,1769251844323,-250.0,0.00016492,2]
[403181576,1769251844338,-152.0,0.0001658,5]
[403181577,1769251844352,-3292.0,0.00016612,2]
[403181578,1769251844365,-217.15233878,0.00016657,2]
[403181579,1769251844382,-885.86649465,0.00016657,2]
[403181580,1769251844396,-181.08010149,0.00016657,2]
[403181581,1769251844408,-323.07684382,0.00016657,2]
[403181582,1769251844421,-165.93,0.00016662,2]
[403181583,1769251844435,-1737.05507534,0.00016674,2]
[403181584,1769251844449,-7638.76589476,0.00016696,2]
[403181585,1769251844461,-500.0,0.00016699,2]
[403181586,1769251844477,-500.0,0.00016891,2]
[403181587,1769251844492,-152.0,0.00016916,6]
[403181588,1769251844505,-250.0,0.00016968,2]
[403181589,1769251844518,-250.0,0.00016968,2]
[403181590,1769251844533,-250.0,0.00016968,2]
[403181591,1769251844545,-250.0,0.00016968,2]
[403181592,1769251844560,-250.0,0.00016968,2]
[403181593,1769251844573,-250.0,0.00016968,2]
[403181594,1769251844585,-250.0,0.00016968,2]
[403181595,1769251844600,-250.0,0.00016968,2]
[403181596,1769251844613,-201.000005,0.00016968,2]
[403181597,1769251844628,-1500.0,0.00016968,2]
[403181598,1769251844644,-1500.0,0.00016968,2]
[403181599,1769251844657,-1500.0,0.00016968,2]
[403181600,1769251844670,-1500.0,0.00016968,2]
[403181601,1769251844680,-1500.0,0.00016968,2]
[403181602,1769251844691,-1500.0,0.00016968,2]
[403181603,1769251844703,-1500.0,0.00016968,2]
[403181604,1769251844717,-1500.0,0.00016968,2]
[403181605,1769251844730,-249.23207042,0.00016997,2]
[403181606,1769251844745,-7740.619,0.00016999,2]
[403181607,1769251844755,-500.0,0.00017,2]
[403181608,1769251844767,-516.11051232,0.00017,2]
[403181609,1769251844780,-158.81404097,0.00017107,2]
[403181610,1769251844795,-283.8,0.0001711,2]
[403181611,1769251844809,-195.30077557,0.00017112,2]
[403181612,1769251844822,-195.45,0.00017138,2]
[403181613,1769251844833,-200.0,0.00017151,2]
[403181614,1769251844844,-283.8,0.00017191,2]
[403181615,1769251844856,-225.18697532,0.00017205,2]
[403181616,1769251844869,-187.78006525,0.00017205,2]
[403181617,1769251844882,-200.0,0.00017241,2]
[403181618,1769251844894,-152.0,0.00017253,7]
[403181619,1769251844906,-1000.0,0.0001726,2]
[403181620,1769251844920,-283.8,0.00017272,2]
[403181621,1769251844933,-1737.05507534,0.00017287,2]
[403181622,1769251844946,-7638.76589476,0.00017298,2]
[403181623,1769251844959,-294.0,0.00017334,2]
[403181624,1769251844980,-294.0,0.00017339,2]
[403181625,1769251845002,-283.8,0.00017353,2]
[403181626,1769251845016,-294.0,0.00017356,2]
[403181627,1769251845041,-200.0,0.00017357,2]
[403181628,1769251845056,-1500.0,0.00017394,2]
[403181629,1769251845071,-4236.06670475,0.000174,2]
[403181630,1769251845086,-1000.0,0.000174,2]
[403181631,1769251845100,-283.8,0.00017434,2]
[403181632,1769251845113,-334.5472959,0.00017478,2]
[403181633,1769251845126,-294.0,0.00017496,2]
[403181634,1769251845141,-294.0,0.00017503,2]
[403181635,1769251845156,-251.98,0.00017508,2]
[403181636,1769251845167,-283.8,0.00017515,2]
[403181637,1769251845183,-500.0,0.00017516,2]
[403181638,1769251845197,-2000.0,0.00017516,2]
[403181639,1769251845210,-1946.80273923,0.00017516,2]
[403181640,1769251845221,-2000.0,0.00017516,2]
[403181641,1769251845234,-2000.0,0.00017516,2]
[403181642,1769251845247,-996.44360934,0.00017516,2]
[403181643,1769251845259,-2000.0,0.00017516,2]
[403181644,1769251845270,-2000.0,0.00017516,2]
[403181645,1769251845283,-2000.0,0.00017516,2]
[403181646,1769251845294,-1000.0,0.00017534,2]
[403181647,1769251845307,-294.0,0.00017544,2]
[403181649,1769251845318,-200.0,0.00017562,2]
[403181651,1769251845329,-165.93,0.00017579,2]
[403181652,1769251845342,-200.0,0.00017581,2]
[403181653,1769251845353,-152.0,0.0001759,8]
[403181654,1769251845365,-283.8,0.00017595,2]
[403181656,1769251845377,-1000.0,0.000176,2]
[403181657,1769251845388,-1569.90652218,0.0001764,2]
[403181658,1769251845400,-294.0,0.00017666,2]
[403181659,1769251845412,-283.8,0.00017676,2]
[403181660,1769251845424,-294.0,0.00017692,2]
[403181661,1769251845436,-150.0,0.000177,2]
[403181662,1769251845447,-1000.0,0.00017729,2]
[403181663,1769251845459,-200.0,0.0001774,2]
[403181664,1769251845470,-181.14462682,0.00017753,2]
[403181665,1769251845482,-194.72792766,0.00017753,2]
[403181666,1769251845499,-283.8,0.00017757,2]
[403181667,1769251845512,-1000.0,0.00017764,2]
[403181668,1769251845525,-1000.0,0.00017774,2]
[403181669,1769251845539,-150.0,0.00017787,2]
[403181670,1769251845558,-1000.0,0.0001779,2]
[403181671,1769251845575,-1000.0,0.000178,2]
[403181672,1769251845587,-252.37998978,0.00017802,2]
[403181673,1769251845601,-341.4708,0.00017802,2]
[403181674,1769251845613,-1000.0,0.00017808,2]
[403181675,1769251845625,-150.0,0.00017808,2]
[403181676,1769251845639,-1000.0,0.00017808,2]
[403181677,1769251845651,-1000.0,0.00017816,2]
[403181678,1769251845664,-150.0,0.00017817,2]
[403181679,1769251845680,-279.55311,0.0001782,2]
[403181680,1769251845706,-279.55312,0.0001782,2]
[403181681,1769251845721,-294.0,0.00017833,2]
[403181682,1769251845734,-283.8,0.00017838,2]
[403181683,1769251845746,-195.45,0.00017841,2]
[403181684,1769251845758,-153.7074367,0.00017848,2]
[403181685,1769251845770,-1000.0,0.00017851,2]
[403181686,1769251845782,-200.0,0.00017856,2]
[403181687,1769251845794,-1000.0,0.0001786,2]
[403181688,1769251845808,-150.0,0.00017863,2]
[403181689,1769251845820,-1000.0,0.00017865,2]
[403181690,1769251845832,-1305.0,0.00017866,2]
[403181691,1769251845844,-1000.0,0.00017872,2]
[403181692,1769251845869,-200.0,0.00017872,2]
[403181693,1769251845884,-150.0,0.00017883,2]
[403181694,1769251845896,-294.0,0.00017888,2]
[403181695,1769251845908,-25000.0,0.000179,3]
[403181696,1769251845920,-249.23207042,0.000179,2]
[403181697,1769251845932,-165.57934006,0.000179,2]
[403181698,1769251845945,-7638.76589476,0.000179,2]
[403181699,1769251845959,-415.87320689,0.000179,3]
[403181700,1769251845972,-195.30077557,0.000179,2]
[403181701,1769251845988,-216.07257378,0.000179,2]
[403181702,1769251846003,-1737.05507534,0.000179,2]
[403181703,1769251846016,-4186.0,0.000179,2]
[403181704,1769251846028,-170.62193096,0.00017918,2]
[403181705,1769251846040,-1000.0,0.00017919,2]
[403181706,1769251846052,-283.8,0.00017919,2]
[403181707,1769251846063,-584.0,0.00017923,2]
[403181708,1769251846077,-150.0,0.00017927,2]
[403181709,1769251846088,-152.0,0.00017927,9]
[403181710,1769251846100,-1000.0,0.0001793,2]
[403181711,1769251846113,-1000.0,0.0001793,2]
[403181712,1769251846124,-1000.0,0.00017941,2]
[403181713,1769251846136,-150.0,0.00017942,2]
[403181714,1769251846147,-150.0,0.00017946,2]
[403181715,1769251846159,-1000.0,0.00017948,2]
[403181716,1769251846171,-150.0,0.00017949,2]
[403181717,1769251846183,-1000.0,0.00017961,2]
[403181718,1769251846196,-500.0,0.0001797,2]
[403181719,1769251846207,-500.0,0.0001797,2]
[403181720,1769251846220,-700.0,0.0001797,2]
[403181721,1769251846231,-500.0,0.0001797,2]
[403181722,1769251846246,-700.0,0.0001797,2]
[403181723,1769251846260,-500.0,0.0001797,2]
[403181724,1769251846273,-700.0,0.0001797,2]
[403181725,1769251846285,-500.0,0.0001797,2]
[403181726,1769251846297,-700.0,0.0001797,2]
[403181727,1769251846309,-700.0,0.0001797,2]
[403181728,1769251846321,-700.0,0.0001797,2]
[403181729,1769251846333,-1100.0,0.0001797,2]
[403181730,1769251846345,-501.96776768,0.00017973,2]
[403181731,1769251846357,-500.34685322,0.00017973,2]
[403181732,1769251846369,-500.0,0.00017973,2]
[403181733,1769251846381,-500.0,0.00017973,2]
[403181734,1769251846395,-500.43979477,0.00017973,2]
[403181735,1769251846408,-150.0,0.00017973,2]
[403181736,1769251846420,-501.90117021,0.00017973,2]
[403181737,1769251846433,-500.0,0.00017973,2]
[403181738,1769251846444,-247.26659948,0.00017973,2]
[403181739,1769251846457,-160.03828545,0.00017973,2]
[403181740,1769251846470,-500.0,0.00017973,2]
[403181741,1769251846482,-178.05953076,0.00017973,2]
[403181742,1769251846494,-502.02546222,0.00017973,2]
[403181743,1769251846506,-501.2562389,0.00017973,2]
[403181744,1769251846519,-574.71375417,0.00017973,2]
[403181745,1769251846530,-500.0,0.00017973,2]
[403181746,1769251846542,-500.0,0.00017973,2]
[403181747,1769251846554,-500.0,0.00017973,2]
[403181748,1769251846569,-500.0,0.00017973,2]
[403181749,1769251846581,-502.21809292,0.00017973,2]
[403181750,1769251846592,-500.0,0.00017973,2]
[403181751,1769251846604,-500.0,0.00017973,2]
[403181752,1769251846615,-1000.0,0.00017975,2]
[403181753,1769251846626,-500.0,0.00017982,2]
[403181754,1769251846638,-1000.0,0.00017987,2]
[403181755,1769251846649,-214.96623226,0.00017989,2]
[403181756,1769251846660,-214.96623226,0.0001799,2]
[403181757,1769251846672,-214.96623226,0.0001799,2]
[403181758,1769251846682,-151.0,0.00017997,2]
[403181759,1769251846694,-249.48172896,0.00017999,2]
[403181760,1769251846705,-29575.0849748,0.00017999,2]
[403181761,1769251846717,-8616.719045,0.00017999,2]
[403181762,1769251846729,-500.0,0.00017999,2]
[403181763,1769251846741,-500.0,0.00017999,2]
[403181764,1769251846758,-500.0,0.00017999,2]
[403181765,1769251846770,-500.0,0.00017999,2]
[403181766,1769251846781,-500.0,0.00017999,2]
[403181767,1769251846792,-500.0,0.00017999,2]
[403181768,1769251846803,-500.0,0.00017999,2]
[403181769,1769251846814,-500.0,0.00017999,2]
[403181770,1769251846825,-500.0,0.00017999,2]
[403181771,1769251846836,-500.0,0.00017999,2]
[403181772,1769251846848,-500.0,0.00017999,2]
[403181773,1769251846861,-279.88786279,0.00017999,2]
[403181774,1769251846873,-1008.959,0.00017999,2]
[403181775,1769251846885,-300.0,0.00017999,2]
[403181776,1769251846896,-500.0,0.00017999,2]
[403181777,1769251846907,-500.0,0.00017999,2]
[403181778,1769251846917,-500.0,0.00017999,2]
[403181779,1769251846929,-500.0,0.00017999,2]
[403181780,1769251846939,-500.0,0.00017999,2]
[403181781,1769251846950,-500.0,0.00017999,2]
[403181782,1769251846961,-500.0,0.00017999,2]
[403181783,1769251846971,-500.0,0.00017999,2]
[403181784,1769251846982,-311.60217601,0.00017999,2]
[403181785,1769251846993,-300.0,0.00017999,2]
[403181786,1769251847003,-150.0,0.00017999,2]
[403181787,1769251847014,-150.0,0.00017999,2]
[403181788,1769251847026,-6309208.56418259,0.00018,2]
[403181789,1769251847036,-885209.44026498,0.00018,2]
[403181790,1769251847975,-332.9023218,0.00018,2]
[403181791,1769251847988,-412.8989822,0.00018,2]
[403181792,1769251848223,-16374.90182027,0.00018,2]
[403181793,1769251848661,-300.23409272,0.00016434,2]
[403181794,1769251849712,216.85110539,0.00012482,2]
[403181795,1769251849907,339.25564708,0.00012482,2]
[403181797,1769251945728,500.0,0.00012382,2]
[403181798,1769251968962,8943.90324753,0.00012382,2]
[403181799,1769251969310,10000.01,0.00012382,2]
[403181800,1769251969338,10000.01,0.00012382,2]
[403181801,1769251969364,10000.01,0.00012382,2]
[403181802,1769251969389,10000.01,0.00012382,2]
[403181803,1769251969414,10000.01,0.00012382,2]
[403181804,1769251969438,10000.01,0.00012382,2]
[403181805,1769251969463,10000.01,0.00012382,2]
[403181806,1769251969486,10000.01,0.00012382,2]
[403181807,1769251969509,10000.01,0.00012382,2]
[403181808,1769251970479,-257.99970782,0.00012382,2]
[403181809,1769251974285,-151.69590403,0.00012382,2]
[403181810,1769251976450,-322.87212497,0.00012382,2]
[403181811,1769251983989,-300.0,0.00012381,2]
[403181812,1769251984015,-49.75431714,0.00012382,2]
[403181813,1769251986283,-581.97788092,0.00012382,2]
[403181814,1769251989576,-167.17532628,0.00012382,2]
[403181815,1769251992115,-404.41989752,0.00012382,2]
[403181816,1769251995029,-218.91069413,0.00012382,2]
[403181817,1769251998245,-291.04185462,0.00012382,2]
[403181818,1769252000630,927.0,0.00012381,2]
[403181819,1769252001964,-259.49426084,0.00012382,2]
[403181820,1769252003395,-158.02750645,0.00012382,2]
[403181821,1769252004888,-386.3893731,0.00012382,2]
[403181822,1769252008682,-369.24555052,0.00012382,2]
[403181823,1769252011553,216.07257378,0.00012282,2]
[403181824,1769252011681,-303.74099113,0.00012382,2]
[403181825,1769252014146,-250.42395574,0.00012382,2]
[403181826,1769252018828,-419.00643504,0.00012382,2]
[403181827,1769252021861,-302.0,0.00012382,2]
[403181828,1769252024463,-272.06885572,0.00012382,2]
[403181829,1769252030669,-409.01146475,0.00012382,2]
[403181830,1769252033172,-277.80208557,0.00012382,2]
[403181831,1769252037134,-256.57295727,0.00012382,2]
[403181832,1769252041425,-221.38599981,0.00012382,2]
[403181833,1769252042347,150.0,0.00012381,2]
[403181834,1769252043272,300.0,0.00012381,2]
[403181835,1769252046847,-380.0870979,0.00012382,2]
[403181836,1769252050418,-196.22535788,0.00012382,2]
[403181837,1769252051427,170.88817865,0.00012282,2]
[403181838,1769252052662,300.0,0.00013699,3]
[403181839,1769252053436,-456.1477153,0.00012382,2]
[403181840,1769252063369,-171.66569563,0.00012382,2]
[403181841,1769252063556,300.0,0.00013973,3]
[403181842,1769252067340,-435.28879196,0.00012382,2]
[403181843,1769252070692,-156.30632335,0.00012382,2]
[403181844,1769252072756,-178.97356656,0.00012382,2]
[403181845,1769252075111,219.02087774,0.00012381,2]
[403181846,1769252075162,469.84016989,0.00012381,2]
[403181847,1769252075198,500.0,0.00012381,2]
[403181848,1769252075243,460.30943645,0.00012381,2]
[403181849,1769252075361,500.0,0.00012381,2]
[403181850,1769252075491,619.86663994,0.00012381,2]
[403181851,1769252075683,500.0,0.00012381,2]
[403181852,1769252077987,-203.33800107,0.00012382,2]
[403181853,1769252081057,-455.80074815,0.00012382,2]
[403181854,1769252084057,-387.2902724,0.00012382,2]
[403181855,1769252089064,-209.20770058,0.00012382,2]
[403181856,1769252092304,-267.61962145,0.00012382,2]
[403181857,1769252094847,-228.64341325,0.00012382,2]
[403181858,1769252098943,-294.0938562,0.00012382,2]
[403181859,1769252101231,300.0,0.00012381,2]
[403181860,1769252101308,221.0,0.00012381,2]
[403181861,1769252101372,300.0,0.00012381,2]
[403181862,1769252101529,1200.0,0.00012381,2]
[403181863,1769252101954,-232.38037855,0.00012382,2]
[403181864,1769252104617,-207.09347675,0.00012382,2]
[403181865,1769252108202,-302.0,0.00012382,2]
[403181866,1769252109756,-175.39869777,0.00012382,2]
[403181867,1769252111308,500.0,0.00012381,2]
[403181868,1769252111347,500.0,0.00012381,2]
[403181869,1769252111394,500.0,0.00012381,2]
[403181870,1769252111431,500.0,0.00012381,2]
[403181871,1769252111491,437.71461194,0.00012381,2]
[403181872,1769252111529,202.88619949,0.00012381,2]
[403181873,1769252111574,305.41131212,0.00012381,2]
[403181874,1769252111597,194.58868788,0.00012381,2]
[403181875,1769252111633,500.0,0.00012381,2]
[403181876,1769252111708,293.92363759,0.00012381,2]
[403181877,1769252111745,445.55315287,0.00012381,2]
[403181878,1769252112242,-405.29924118,0.00012382,2]
[403181879,1769252113724,-250.85993553,0.00012382,2]
[403181880,1769252117865,-290.92210688,0.00012382,2]
[403181881,1769252121073,-360.95543235,0.00012382,2]
[403181882,1769252126740,772.95797546,0.00012381,2]
[403181883,1769252126783,772.95797546,0.00012381,2]
[403181884,1769252126828,772.95797546,0.00012381,2]
[403181885,1769252126875,772.95797546,0.00012381,2]
[403181886,1769252126919,772.95797546,0.00012381,2]
[403181887,1769252126969,772.95797546,0.00012381,2]
[403181888,1769252127020,772.95797546,0.00012381,2]
[403181889,1769252127064,772.95797546,0.00012381,2]
[403181890,1769252127108,772.95797546,0.00012381,2]
[403181891,1769252127151,772.95797546,0.00012381,2]
[403181892,1769252127188,772.95797546,0.00012381,2]
[403181893,1769252127219,-253.0140025,0.00012382,2]
[403181894,1769252127262,63.4067916,0.00012381,2]
[403181895,1769252127289,709.55118386,0.00012381,2]
[403181896,1769252127335,772.95797546,0.00012381,2]
[403181897,1769252127378,772.95797546,0.00012381,2]
[403181898,1769252127416,772.95797546,0.00012381,2]
[403181899,1769252127457,772.95797546,0.00012381,2]
[403181900,1769252127498,772.95797546,0.00012381,2]
[403181901,1769252127541,772.95797546,0.00012381,2]
[403181902,1769252127581,772.95797546,0.00012381,2]
[403181903,1769252127624,772.95797546,0.00012381,2]
[403181904,1769252127671,772.95797546,0.00012381,2]
[403181905,1769252127710,772.95797546,0.00012381,2]
[403181906,1769252128046,772.95797546,0.00012381,2]
[403181907,1769252128084,772.95797546,0.00012381,2]
[403181908,1769252128122,14.96311062,0.00012381,2]
[403181909,1769252128148,757.99486484,0.00012381,2]
[403181910,1769252128186,772.95797546,0.00012381,2]
[403181911,1769252128224,772.95797546,0.00012381,2]
[403181912,1769252128262,772.95797546,0.00012381,2]
[403181913,1769252128301,772.95797546,0.00012381,2]
[403181914,1769252128344,772.95797546,0.00012381,2]
[403181915,1769252128389,772.95797546,0.00012381,2]
[403181916,1769252128428,772.95797546,0.00012381,2]
[403181917,1769252128471,772.95797546,0.00012381,2]
[403181918,1769252128510,772.95797546,0.00012381,2]
[403181919,1769252128555,772.95797546,0.00012381,2]
[403181920,1769252128610,772.95797546,0.00012381,2]
[403181921,1769252128659,739.4774051,0.00012381,2]
[403181922,1769252128686,33.48057036,0.00012381,2]
[403181923,1769252128725,772.95797546,0.00012381,2]
[403181924,1769252128764,772.95797546,0.00012381,2]
[403181925,1769252128807,772.95797546,0.00012381,2]
[403181926,1769252128845,772.95797546,0.00012381,2]
[403181927,1769252128901,772.95797546,0.00012381,2]
[403181928,1769252128939,772.95797546,0.00012381,2]
[403181929,1769252128980,772.95797546,0.00012381,2]
[403181930,1769252129018,772.95797546,0.00012381,2]
[403181931,1769252129060,772.95797546,0.00012381,2]
[403181932,1769252129115,772.95797546,0.00012381,2]
[403181933,1769252129156,772.95797546,0.00012381,2]
[403181934,1769252129198,772.95797546,0.00012381,2]
[403181935,1769252129257,691.03372412,0.00012381,2]
[403181936,1769252129282,81.92425134,0.00012381,2]
[403181937,1769252131191,-254.84613125,0.00012382,2]
[403181938,1769252135168,-256.54516795,0.00012382,2]
[403181939,1769252138448,-170.16172132,0.00012382,2]
[403181940,1769252138484,-6140.0,0.00012382,2]
[403181941,1769252141487,-423.18500909,0.00012382,2]
[403181942,1769252144133,-196.76014019,0.00012382,2]
[403181943,1769252147138,-596.81575953,0.00012382,2]
[403181944,1769252147189,216.07257378,0.00012282,2]
[403181945,1769252152585,-154.97974583,0.00012382,2]
[403181946,1769252154592,-296.64785053,0.00012382,2]
[403181948,1769252157090,-387.92974064,0.00012382,2]
[403181949,1769252164159,-359.42266814,0.00012382,2]
[403181950,1769252166613,-294.89375151,0.00012382,2]
[403181951,1769252169790,-209.40344106,0.00012382,2]